Cogmind - Beta 13 @@@ ROGUE MODE // 2024.03.31 @ 10:47:44 Player: Mili Result: Destroyed by G-47 Trooper with Particle Gun Performance ------------- Evolutions (2) 1000 Regions Visited (3) 600 Robots Destroyed (24) 120 Value Destroyed (538) 538 Prototype IDs (5) 100 Alien Tech Used (0) 0 Bonus (0) 0 TOTAL SCORE: 2358 Bonus ------- None Cogmind --------- Core Integrity 0/550 Matter 288/300 Energy 100/100 System Corruption 0% Temperature Cool (9) Movement Core (1350) Ox26 Location -8/Materials Parts ------- > --- POWER (2) -------- (None) > --- PROPULSION (3) --- (None) > --- UTILITY (4) ------ Huge Storage Unit Signal Interpreter > --- WEAPON (2) ------- (None) > --- INVENTORY (25) --- Insulated Plating Peak State ------------ > --- POWER ------------ Ion Engine > --- PROPULSION ------- Improved Aluminum Leg Improved Aluminum Leg Improved Aluminum Leg > --- UTILITY ---------- Huge Storage Unit Signal Interpreter Improved Terrain Scanner Recoil Stabilizer > --- WEAPON ----------- Advanced Beam Cannon Rocket Launcher > --- INVENTORY -------- Improved Aluminum Leg Salvage Targeting Computer Light Cannon [Rating: 20] Favorites ----------- Power Light Ion Engine Engine Light Ion Engine Propulsion Aluminum Leg Leg Aluminum Leg Utility Improved Terrain Scanner Device Improved Terrain Scanner Storage Huge Storage Unit Processor Signal Interpreter Hackware Hacking Suite Protection Hardened Light Armor Plating Weapon Advanced Beam Cannon Energy Gun Small Laser Energy Cannon Advanced Beam Cannon Ballistic Gun Assault Rifle Ballistic Cannon Light Cannon Launcher Rocket Launcher Build | -11 -10 -9 -8 ------- Run | Yrd Mat Mat Mat Slots Evolved 4 | . . 2 2 Power 1 | . . . 1 Propulsion 1 | . . 1 . Utility 2 | . . 1 1 Weapon . | . . . . Parts Attached 31 | 6 5 12 8 Power 5 | 1 . 3 1 Engine 5 | 1 . 3 1 Core . | . . . . Reactor . | . . . . Propulsion 7 | 2 . 3 2 Treads . | . . . . Leg 7 | 2 . 3 2 Wheel . | . . . . Hover . | . . . . Flight . | . . . . Utility 7 | 1 1 2 3 Device 2 | 1 . . 1 Storage 1 | . . 1 . Processor 2 | . . 1 1 Hackware 1 | . 1 . . Protection 1 | . . . 1 Artifact . | . . . . Weapon 12 | 2 4 4 2 Energy Gun 3 | 1 . 1 1 Energy Cannon 4 | . 3 1 . Ballistic Gun 1 | 1 . . . Ballistic Cannon 2 | . 1 . 1 Launcher 2 | . . 2 . Special Weapon . | . . . . Impact Weapon . | . . . . Slashing Weapon . | . . . . Piercing Weapon . | . . . . Special Melee Weapon . | . . . . Unidentified Prototypes 3 | . 1 2 . Parts Lost 14 | . . . 14 Power 2 | . . . 2 Propulsion 4 | . . . 4 Utility 4 | . . . 4 Weapon 4 | . . . 4 Highest Loss Streak 11 | . . . 11 To Critical Strikes . | . . . . Average Slot Usage (%) 80 | . 91 81 56 Engine 10 | . 14 11 3 Leg 23 | . 28 23 13 Device 11 | . 14 11 5 Storage 2 | . . 2 9 Processor 4 | . . 3 14 Hackware 6 | . 7 8 . Energy Gun 2 | . 4 . 2 Energy Cannon 7 | . 6 11 3 Ballistic Gun 2 | . 5 . . Ballistic Cannon 5 | . 9 2 1 Launcher 2 | . . 8 2 Naked Turns . | . . . . Heaviest Build 101 | 7 11 94 101 Greatest Support 39 | 20 20 39 39 Greatest Overweight (x) 33 | . 1 3 33 Average Overweight (x) 1 | . . 1 5 Largest Inventory Capacity 25 | 5 5 25 25 Average Capacity 10 | 5 5 9 25 Most Carried 5 | 2 5 5 4 Average Carried 3 | . 3 3 1 Final Capacity 25 | 5 5 25 25 Final Carried 5 | . 5 4 1 Class Distribution -------------------- 100% | Mutant Dominant Class ---------------- Mutant | -10/Materials Mutant | -9/Materials Mutant | -8/Materials Resources | -11 -10 -9 -8 ----------- Run | Yrd Mat Mat Mat Matter Collected 682 | 246 158 208 70 Remotely . | . . . . Salvage Created 744 | 67 285 267 125 Parts 44 | 5 19 15 5 Haulers Intercepted 1 | . 1 . . Recyclers Shooed 4 | 1 3 . . Parts Field Recycled . | . . . . Retrieved Matter . | . . . . Parts Self-Destructed . | . . . . Prevented . | . . . . Kills | -11 -10 -9 -8 ------- Run | Yrd Mat Mat Mat Combat Hostiles Destroyed 14 | . 4 7 3 Guns 4 | . 3 . 1 Cannons 7 | . 1 4 2 AOE 3 | . . 3 . Classes Destroyed 11 | 2 6 3 . Worker 1 | . 1 . . Builder 1 | . . 1 . Tunneler 2 | 1 . 1 . Hauler 1 | . 1 . . Recycler 2 | 1 1 . . Operator 1 | . 1 . . Watcher 2 | . 2 . . Swarmer 3 | . 3 . . Grunt 7 | . 1 4 2 Brawler 2 | . . 2 . Sentry 2 | . . 1 1 Best Kill Streak 6 | 1 5 6 1 Combat Bots Only 4 | . 3 4 1 Max Kills in Single Turn 3 | 1 2 3 1 Gunslinging . | . . . . Exploded 2 | . . 2 . Melee . | . . . . Uniques/NPCs Destroyed . | . . . . Combat | -11 -10 -9 -8 -------- Run | Yrd Mat Mat Mat Hostile Shots Fired 217 | . 35 21 161 Missed 64 | . 8 11 45 Damage Taken 2160 | . 244 114 1802 Core 629 | . 40 32 557 Absorbed by Shields . | . . . . Core Remaining (%) 92 | 100 84 92 . Volleys Fired 61 | 9 22 11 19 Largest 2 | 2 2 2 2 Hottest 103 | 60 103 101 103 Shots Fired 99 | 18 41 19 21 Gun 46 | 18 24 . 4 Cannon 45 | . 17 11 17 Launcher 8 | . . 8 . Special . | . . . . Kinetic 44 | 9 22 . 13 Thermal 47 | 9 19 11 8 Explosive 8 | . . 8 . Electromagnetic . | . . . . Robot Hit Streak 6 | 2 6 6 5 Robot Miss Streak 4 | 2 4 1 1 Penetration Max . | . . . . Secondary Targets 1 | . 1 . . Max Gunslinging Chain 1 | . 1 . . Shots Hit Robots 57 | 10 20 12 15 Core Hits 30 | 3 11 11 5 Critical Kills . | . . . . Critical Parts Destroyed . | . . . . Critical Strikes 1 | . . . 1 Burn 1 | . . . 1 Melee Attacks . | . . . . Impact . | . . . . Slashing . | . . . . Piercing . | . . . . Sneak Attacks . | . . . . Combat Hostiles . | . . . . Follow-up Attacks . | . . . . Damage Inflicted 1326 | 123 295 612 296 Guns 337 | 123 150 . 64 Cannons 516 | . 134 163 219 Explosions 449 | . . 449 . Melee . | . . . . Ramming 24 | . 11 . 13 Kinetic 423 | 79 187 . 157 Thermal 430 | 44 97 163 126 Explosive 449 | . . 449 . Electromagnetic . | . . . . Impact . | . . . . Slashing . | . . . . Piercing . | . . . . Highest Corruption . | . . . . Average Corruption . | . . . . Corruption Purged . | . . . . Corruption Blocked . | . . . . Overload Shots . | . . . . Overflow Damage 27 | . . 26 1 Projectiles 1 | . . . 1 Explosions 26 | . . 26 . Melee . | . . . . Knockbacks 6 | . 1 . 5 Impact 1 | . . . 1 Kinetic 5 | . 1 . 4 Secondary . | . . . . Self-Inflicted Damage . | . . . . Shots . | . . . . Rammed . | . . . . Targets Rammed 7 | . 5 . 2 Kicked 7 | . 5 . 2 Crushed . | . . . . Highest Temperature 201 | 2 201 170 84 Average Temperature 46 | 2 49 61 21 Received Heat Transfer 1233 | . 60 48 1125 Siege Activations . | . . . . Robots Corrupted . | . . . . Combat Hostiles . | . . . . Parts Fried . | . . . . Impact Corruptions . | . . . . Robots Melted . | . . . . Combat Hostiles . | . . . . Parts Melted . | . . . . Heat Transferred 941 | 100 212 296 333 Parts Sabotaged . | . . . . Parts Stolen . | . . . . Parts Stripped . | . . . . Power Chain Reactions . | . . . . Alert | -11 -10 -9 -8 ------- Run | Yrd Mat Mat Mat Peak Influence 188 | 10 125 188 52 Initial 37 | . 6 15 37 Average 32 | 3 20 67 23 Maximum Alert Level . | . . . . Low Security (%) 100 | 100 100 100 100 Level 1 . | . . . . Level 2 . | . . . . Level 3 . | . . . . Level 4 . | . . . . Level 5 . | . . . . High Security . | . . . . Max Security . | . . . . Squads Dispatched 2 | . 2 . . Investigation . | . . . . Extermination . | . . . . Reinforcement 2 | . 2 . . Assault . | . . . . Garrison . | . . . . Intercept . | . . . . Searches Triggered . | . . . . Construction Impeded . | . . . . Haulers Reinforced . | . . . . Active Scanning Responses . | . . . . Cargo Convoy Interrupts . | . . . . Stealth | -11 -10 -9 -8 --------- Run | Yrd Mat Mat Mat Distress Signals 4 | . 1 3 . Communications Jammed . | . . . . Distress Signals . | . . . . Times Spotted 23 | . 10 7 6 Peak Tracking Total 4 | . 4 3 4 Tactical Retreats . | . . . . Traps | -11 -10 -9 -8 ------- Run | Yrd Mat Mat Mat Traps Triggered 1 | . . 1 . Indirectly . | . . . . Trap Hack Attempts . | . . . . Triggered . | . . . . Disarmed . | . . . . Reprogrammed . | . . . . Reused . | . . . . Traps Extracted . | . . . . Installed . | . . . . Triggered . | . . . . Machines | -11 -10 -9 -8 ---------- Run | Yrd Mat Mat Mat Machines Disabled . | . . . . Max in Single Turn . | . . . . Machines Repaired . | . . . . Machines Dismantled . | . . . . Machines Sabotaged . | . . . . Overloaded Fab Kills . | . . . . Hacking | -11 -10 -9 -8 --------- Run | Yrd Mat Mat Mat Machines Accessed 5 | . 3 2 . Terminals 5 | . 3 2 . Fabricators . | . . . . Repair Stations . | . . . . Recycling Units . | . . . . Scanalyzers . | . . . . Garrison Access . | . . . . Total Hacks 10 | . 8 2 . Successful 3 | . 2 1 . Failed 7 | . 6 1 . Catastrophic 1 | . . 1 . Database Lockouts . | . . . . Manual 3 | . 2 1 . Terminals 10 | . 8 2 . Fabricators . | . . . . Repair Stations . | . . . . Recycling Units . | . . . . Scanalyzers . | . . . . Garrison Access . | . . . . Terminal Hacks 3 | . 2 1 . Prototype ID Bank 1 | . 1 . . Recall Investigation 1 | . 1 . . Zone Layout 1 | . . 1 . Fabricator Hacks . | . . . . Repair Station Hacks . | . . . . Recycling Unit Hacks . | . . . . Scanalyzer . | . . . . Garrison Access Hacks . | . . . . Unauthorized Hacks . | . . . . Terminals . | . . . . Fabricators . | . . . . Repair Stations . | . . . . Recycling Units . | . . . . Scanalyzers . | . . . . Garrison Access . | . . . . Data Cores Recovered . | . . . . Used . | . . . . Hacking Detections 2 | . 2 . . Full Trace Events . | . . . . Feedback Events . | . . . . Feedback Blocked . | . . . . Robot Schematics Acquired . | . . . . Robots Built . | . . . . Authchips . | . . . . Time . | . . . . Total Robot Build Rating . | . . . . Part Schematics Acquired . | . . . . Parts Built . | . . . . Authchips . | . . . . Time . | . . . . Total Part Build Rating . | . . . . Parts Repaired . | . . . . Time . | . . . . Parts Recycled . | . . . . Recycled Matter . | . . . . Retrieved Matter . | . . . . Retrieved Components . | . . . . Parts Scanalyzed . | . . . . Part Schematics Acquired . | . . . . Parts Damaged . | . . . . Bothacking | -11 -10 -9 -8 ------------ Run | Yrd Mat Mat Mat Used RIF Installer . | . . . . Robots Hacked . | . . . . Non-combat . | . . . . Combat . | . . . . Robot Hacks Applied . | . . . . Relay Couplers Released . | . . . . Fabnet Peak Effective % . | . . . . Robots Rewired . | . . . . Allies Hacked . | . . . . Hacks Repelled . | . . . . Allies | -11 -10 -9 -8 -------- Run | Yrd Mat Mat Mat Total Allies . | . . . . Largest Group . | . . . . Highest-Rated Group . | . . . . Highest-Rated Ally . | . . . . Total Orders . | . . . . Ally Attacks . | . . . . Total Damage . | . . . . Kills . | . . . . Allies Corrupted . | . . . . Allies Melted . | . . . . Intel | -11 -10 -9 -8 ------- Run | Yrd Mat Mat Mat Robot Analysis Total . | . . . . Derelict Logs Recovered . | . . . . Drone Launches . | . . . . Drone Recoveries . | . . . . Exploration | -11 -10 -9 -8 ------------- Run | Yrd Mat Mat Mat Turns Passed 2259 | 129 1062 575 493 Spaces Moved 1117 | 80 664 270 103 Core 102 | 9 . 85 8 Treads . | . . . . Legs 1015 | 71 664 185 95 Wheels . | . . . . Hover . | . . . . Flight . | . . . . Fastest Speed 50 | 50 120 120 260 Average Speed 181 | 112 147 191 431 Slowest Speed 1700 | 120 190 330 1700 Overloaded Moves . | . . . . Propulsion Burnouts . | . . . . Robots Hopped . | . . . . Cave-ins Triggered . | . . . . Exploration Rate (%) 31 | 6 65 42 11 Regions Visited 3 Branch Regions . Pre-discovered Areas . | . . . . Known Exits Taken 1 | . . 1 . Unknown Exits Taken 2 | 1 1 . . Scrap Searched . | . . . . Spaces Dug . | . . . . Terrain Destroyed 57 | . . 57 . Melee . | . . . . Projectile . | . . . . AOE 57 | . . 57 . Terrain Rammed . | . . . . Walls Destroyed . | . . . . Machines Disabled . | . . . . Actions | -11 -10 -9 -8 --------- Run | Yrd Mat Mat Mat Total 1256 | 102 703 314 137 Wait . | . . . . Move 1114 | 79 663 269 103 Hop . | . . . . Pick Up 30 | 7 6 12 5 Fast Attach 2 | . 2 . . Attach 21 | 6 . 7 8 Detach 1 | . . 1 . Swap 8 | . 3 5 . Drop 12 | 1 2 9 . Fire 61 | 9 22 11 19 Melee . | . . . . Ram . | . . . . Kick 7 | . 5 . 2 Crush . | . . . . Escape Stasis . | . . . . Rewire . | . . . . Trap . | . . . . Miscellaneous . | . . . . Route ------- -11/Scrapyard -10/Materials (discovered 3 exits: *Mat x2 / [*Min]) -9/Materials -8/Materials History --------- Turn | Location | Event 6 | -11/Scrapyard | Discovered new exit (range 16) 130 | -11/Scrapyard | Entered Materials 185 | -10/Materials | Discovered new exit (range 15) 229 | -10/Materials | Discovered new exit (range 12) 306 | -10/Materials | Build established: Mutant 982 | -10/Materials | Discovered new exit (range 7) 1192 | -10/Materials | Entered another Materials area 1192 | -9/Materials | Evolved 2 slots: Propulsion x1, Utility x1 1647 | -9/Materials | Discovered new exit (range 3) 1650 | -9/Materials | Identified exit to Materials 1767 | -9/Materials | Entered another Materials area 1767 | -8/Materials | Evolved 2 slots: Power x1, Utility x1 2033 | -8/Materials | Core integrity fell below 50% 2053 | -8/Materials | Lost 11 parts (2p3n3u3w) 2222 | -8/Materials | Core integrity fell below 20% 2260 | -8/Materials | Destroyed by G-47 Trooper with Particle Gun Last Messages --------------- Deuterium Engine destroyed. G-47 Trooper destroyed. K-01 Serf collects debris. G-47 Trooper knocked back. K-01 Serf collects debris. Lgt. Cannon destroyed. K-01 Serf collects debris. Acquired Particle Gun. Acquired 29 matter. G-47 Trooper destroyed. Acquired 6 matter. Acquired Insulated Plating. K-01 Serf collects debris. Acquired 12 matter. Imp. Aluminum Leg destroyed. G-47 Trooper suffers critical hit (Burn). Particle Gun destroyed. Critical hit (Burn: +37). Salvage Targeting Computer destroyed. Critical hit (Burn: +37). Map ----- +----------------------------------------------------+ | | | | | | | | | | | | | | | | | ?????????????????????????????????????????????????? | | ????????????????????????????#?????#??????????????? | | ????????????????????????????????????????????#????? | | ?????????????????????????????????????????????????? | | ?????????????????????????????????????????????????? | | ?????????????????????#????????????#####??????????? | | ????????????????????#???#???????#?# #??????????? | | ???????????????????????#????????#?# #??????????? | | ?????????????????????????????#????# #??????????? | | ?????????????########?????????????# #??????????? | | ?????????????# #?#????????#??# #?????????#? | | ?????????????# ! ! #???#???#?????# #?????????#? | | ?????????????# !! #????#????????# #??????????? | | ?????????????# !! ##????????????# #??????????? | | ?????######### #?????##??????# #??????????? | | ????!!* # ##?##????#?#### #??????????? | | ????!! """ #+##+################# #####??????? | | ???#!! """ #% @ !! !##??????? | | ???# """%+ g ! !#???#? ? | | ???# # ]! !##?????? | | ???# ""T"" !##r########+## ! !#??????? | | ???? """"" ## #??# # !#??????? | | ?????? ## #??# = ! # !##??????? | | ?????###### ### #?## # ####???????? | | ??????????##??# #?## """ # ##?????????? | | ?#?????????##?# #??# """ # """"""" #??????????? | | ??????????????# #??# """ %# """"""" #??????????? | | ??????????????# #??######## """"""" #??????????? | | ??????????????? ???#??????# """"""" #??????????# | | ?????????????#? ??????????# "?????" #??????????? | | ??????????????? ??????????# ? ??? #??????????? | | ??????????????? ??????????# ????? #?????#????? | | ???????? ??? ?? ????"?????# "?"???" #??????????? | | ????????????? ? ?????????## ?????"" #??????????? | | ??????????????? #??????????????????? ???????????? | | ???????????????????????#?????????????????????????? | | ?????????????????????????????????????????????????? | | ?????????????????????????????????????????????????? | | ?????????????????????????????????????????????????? | | ?????????????????????????????????????????????????? | | ?????????????????????????????????????????????????? | | ?????????????????????????????????????????????????? | +----------------------------------------------------+ Best States ------------- Heat Dissipation 31 Energy Generation 14 Energy Capacity 275 Matter Stores 300 Matter Capacity 300 Sight Range 16 Terrain Scan Range 16 Terrain Scan Density 10 Armor Coverage 150 Evasion (%) 55 Recoil Reduction 4 Salvage Targeting 1 Offensive Hacking 10 Item Schematics ----------------- None Robot Schematics ------------------ None Fabricated ------------ Nothing Alien Tech Used ----------------- None Achievements -------------- Loot Pinata Risk Taker Challenges ------------ None Game ------ Seed NovaOmegaClaw Manual? 0 Play Time 00:19:53 Cumulative 0.5 hours Start 2024.03.31 @ 00:27:45 End 2024.03.31 @ 10:47:44 Sessions 5 Manual Loads 0 Difficulty Rogue Special Mode None Game No. 6 Rogue 6 Adventurer 0 Explorer 0 Win Type - Total 0 Types 0/0/0/0/0/0/0/0/0 Lore% 0 Gallery% 3 Achievement% 3 Wizard Run 0 Options --------- Layout 1 ASCII 0 Keyboard 0 Movement Arrows Keybinds 0 Fullscreen 2 Font 24/Smallcaps Map View 50x35 Zoom Use 0% Tactical HUD 0 Map Filters NONE Filters NONE Steam 1 RUN: c14a2b58-3228-4121-84a6-71220506db34